lending/lending_fUSD_20240810
["ID","MTS","AMOUNT","RATE_DAILY","PERIOD"]
[334605987,1723326640562,-297.73,0.00012529,2]
[334605988,1723326640572,-297.73,0.00012529,2]
[334605989,1723326640582,-2275.74000003,0.0001254,2]
[334605994,1723326642783,-297.73,0.00012529,2]
[334605995,1723326642794,-297.73,0.00012529,2]
[334605996,1723326642803,-297.73,0.00012529,2]
[334605997,1723326642813,-297.73,0.00012529,2]
[334605998,1723326642833,-127.35107175,0.00012529,2]
[334605999,1723326642845,-170.37892825,0.00012529,2]
[334606000,1723326642854,-1074.90586061,0.0001254,2]
[334606001,1723326642866,-374.72962927,0.0001254,2]
[334606002,1723326642878,-2060.65439326,0.0001254,2]
[334606004,1723326643644,-4616.80177371,0.0001254,2]
[334606005,1723326645921,-297.73,0.00012529,2]
[334606006,1723326645930,-297.73,0.00012529,2]
[334606007,1723326645939,-297.73,0.00012529,2]
[334606008,1723326645949,-297.73,0.00012529,2]
[334606009,1723326645958,-297.73,0.00012529,2]
[334606010,1723326645967,-297.73,0.00012529,2]
[334606011,1723326645976,-297.73,0.00012529,2]
[334606012,1723326645986,-297.73,0.00012529,2]
[334606013,1723326645995,-297.73,0.00012529,2]
[334606014,1723326646004,-297.73,0.00012529,2]
[334606015,1723326646013,-297.73,0.00012529,2]
[334606016,1723326646023,-462.91016708,0.0001254,2]
[334606017,1723326646034,-810.7547,0.0001254,2]
[334606018,1723326646144,-297.73,0.00012529,2]
[334606019,1723326646153,-2486.67376051,0.0001254,2]
[334606025,1723326735002,150.0,0.00011,2]
[334606044,1723326938558,281.88,9.783e-05,2]
[334606047,1723327426745,285.41,9.325e-05,2]
[334606059,1723327828278,250.0,0.00010959,2]
[334606089,1723327832030,-521.06,0.00011011,2]
[334606090,1723327832040,-206.4420417,0.00011054,2]
[334606091,1723327832055,-193.5579583,0.00011054,2]
[334606092,1723327832065,-150.0,0.00011057,2]
[334606093,1723327832076,-256.0,0.00011104,2]
[334606094,1723327832090,-302.6920417,0.00011104,2]
[334606095,1723327832104,-119.3079583,0.00011104,2]
[334606096,1723327832117,-150.0,0.00011104,2]
[334606097,1723327832129,-300.0,0.00011104,2]
[334606098,1723327832139,-3031.93569449,0.00011105,2]
[334606099,1723327832149,-3120.60802206,0.00011105,2]
[334606100,1723327832159,-2835.67566949,0.00011105,2]
[334606101,1723327832170,-218.88046172,0.00011105,2]
[334606102,1723327832179,-264.45526709,0.00011105,2]
[334606103,1723327832188,-178.14591444,0.00011105,2]
[334606104,1723327832197,-155.0,0.00011105,2]
[334606105,1723327832207,-244.64299526,0.00011105,2]
[334606106,1723327832218,-3520.05519747,0.00011105,2]
[334606114,1723327838103,-479.87927214,0.00011105,2]
[334606140,1723327840291,-494.29654949,0.00011105,2]
[334606146,1723327843802,-10742.04021264,0.00011105,2]
[334606147,1723327843812,-166.57544896,0.00011105,2]
[334606148,1723327843822,-15480.914227,0.00011105,2]
[334606149,1723327843832,-1002.98363349,0.0001116,2]
[334606150,1723327843841,-25318.57627977,0.00011186,2]
[334606151,1723327843851,-169.0,0.00011186,2]
[334606152,1723327843861,-797.91,0.00011195,2]
[334606153,1723327843870,-303.90469939,0.00011206,2]
[334606154,1723327843880,-155.0,0.00011206,2]
[334606155,1723327843889,-10532.64512729,0.00011206,2]
[334606156,1723327843899,-185.6,0.00011211,2]
[334606157,1723327843908,-2000.0,0.0001129,2]
[334606158,1723327843918,-250.0,0.00011295,2]
[334606159,1723327843928,-600.0,0.00011296,2]
[334606160,1723327843939,-1405.92101915,0.00011525,2]
[334606161,1723327843948,-214.4,0.00011535,2]
[334606162,1723327843957,-285.41,0.00011589,2]
[334606163,1723327843967,-15481.31,0.00011767,2]
[334606164,1723327843976,-9902.3107994,0.0001185,2]
[334606165,1723327843985,-5403.00141948,0.00011896,2]
[334606166,1723327843994,-9269.56154788,0.00011959,2]
[334606167,1723327844004,-2840.69197074,0.00011959,2]
[334606168,1723327844016,-155.2714471,0.00012,2]
[334606169,1723327844025,-214.36,0.00012,2]
[334606170,1723327844035,-214.36,0.00012,2]
[334606171,1723327844044,-214.36,0.00012,2]
[334606172,1723327844054,-214.36,0.00012,2]
[334606173,1723327844063,-214.36,0.00012,2]
[334606174,1723327844073,-214.36,0.00012,2]
[334606175,1723327844087,-214.36,0.00012,2]
[334606176,1723327844097,-214.36,0.00012,2]
[334606177,1723327844107,-839.2412,0.00012021,2]
[334606178,1723327844116,-420.0,0.00012201,2]
[334606179,1723327844296,-420.2791488,0.00012246,2]
[334606180,1723327844309,-5000.0,0.0001236,2]
[334606181,1723327844318,-400.0,0.00012435,2]
[334606182,1723327844328,-32691.90338807,0.00012439,2]
[334606183,1723327844337,-698.05,0.00012439,2]
[334606184,1723327844347,-11130.3814,0.00012439,2]
[334606185,1723327844356,-76133.46995414,0.0001254,2]
[334606186,1723327844382,-1647.90000071,0.00011959,2]
[334606233,1723327941634,294.28,9.662e-05,2]
[334606234,1723327955429,150.0,0.00011,2]
[334606239,1723328405604,550.0,0.0001,2]
[334606240,1723328427115,2000.0,0.00010986,2]
[334606241,1723328471514,279.56,9.111e-05,2]
[334606242,1723328502141,797.91,0.00010996,2]
[334606243,1723328579259,824.712849,0.00010969,2]
[334606246,1723328645422,571.77,0.00010993,2]
[334606250,1723328776232,240.0,0.00010964,2]
[334606251,1723328816355,250.0,0.00010937,2]
[334606254,1723328867775,250.0,0.00010959,2]
[334606255,1723328896310,23890.0,0.00010971,2]
[334606307,1723329032120,265.58,9.233e-05,2]
[334606314,1723329032178,-2000.0,0.00011,2]
[334606317,1723329032188,-775.29,0.00011011,2]
[334606319,1723329032198,-150.0,0.00011052,2]
[334606321,1723329032207,-300.0,0.00011104,2]
[334606323,1723329032217,-3371.66029758,0.00011105,2]
[334606324,1723329032229,-7160.98482971,0.00011105,2]
[334606325,1723329032238,-9269.56154788,0.00011105,2]
[334606326,1723329032248,-2835.67566949,0.00011105,2]
[334606327,1723329032258,-1405.92101915,0.00011105,2]
[334606328,1723329032267,-2840.69197074,0.00011105,2]
[334606329,1723329032277,-218.88046172,0.00011105,2]
[334606330,1723329032286,-3120.60802206,0.00011105,2]
[334606331,1723329032296,-264.45526709,0.00011105,2]
[334606332,1723329032305,-3979.10104429,0.00011105,2]
[334606333,1723329032315,-2111.39291129,0.00011105,2]
[334606334,1723329032324,-2502.21177786,0.00011105,2]
[334606335,1723329032334,-3403.93215577,0.00011105,2]
[334606336,1723329032343,-2341.49151467,0.00011105,2]
[334606337,1723329032352,-2145.62895141,0.00011105,2]
[334606338,1723329032363,-1739.33546408,0.00011105,2]
[334606339,1723329032372,-1634.13334679,0.00011105,2]
[334606340,1723329032381,-719.8919336,0.00011105,2]
[334606341,1723329032390,-1500.0,0.00011105,2]
[334606343,1723329032400,-168.08,0.00011147,2]
[334606345,1723329032409,-170.36,0.00011164,2]
[334606347,1723329032419,-35722.43931546,0.00011186,2]
[334606348,1723329032429,-743.79,0.00011186,2]
[334606349,1723329032438,-1275.45690478,0.00011186,2]
[334606350,1723329032447,-839.2412,0.00011203,2]
[334606351,1723329032457,-1081.78,0.00011203,2]
[334606352,1723329032466,-499.99,0.00011203,2]
[334606353,1723329032476,-22904.26,0.00011203,2]
[334606354,1723329032486,-760.0,0.00011243,2]
[334606355,1723329032496,-1050.71677233,0.00011322,2]
[334606356,1723329032505,-1298.06114648,0.00011322,2]
[334606357,1723329032514,-200.0,0.00011407,2]
[334606358,1723329032524,-1138.96848202,0.00011525,2]
[334606359,1723329032533,-200.0,0.00011791,2]
[334606360,1723329032543,-1206.44108188,0.00011896,2]
[334606361,1723329032553,-298.60903379,0.00011896,2]
[334606362,1723329032562,-1206.44108188,0.00011896,2]
[334606363,1723329032573,-251.08685718,0.00011896,2]
[334606364,1723329032582,-600.0,0.00012,2]
[334606365,1723329032591,-3112.48079229,0.00012,2]
[334606366,1723329032600,-420.2791488,0.00012129,2]
[334606367,1723329032610,-420.0,0.00012201,2]
[334606368,1723329032619,-3680.0082,0.00012239,2]
[334606369,1723329032628,-4491.1038,0.00012239,2]
[334606370,1723329032637,-277.5,0.000123,2]
[334606371,1723329032646,-1033.1993,0.0001233,2]
[334606372,1723329032655,-313.00290677,0.0001233,2]
[334606373,1723329032665,-240.0,0.00012335,2]
[334606374,1723329032674,-11130.3814,0.00012339,2]
[334606375,1723329032683,-4756.2146,0.00012339,2]
[334606376,1723329032692,-965.9951,0.00012339,2]
[334606377,1723329032701,-1074.54001248,0.0001236,2]
[334606378,1723329032710,-962.32288894,0.00012391,2]
[334606379,1723329032719,-600.66070461,0.00012391,2]
[334606380,1723329032733,-649.76947784,0.00012397,2]
[334606381,1723329032742,-921.42075982,0.00012397,2]
[334606382,1723329032751,-150.0,0.00012403,2]
[334606383,1723329032760,-448.22107204,0.00012429,2]
[334606384,1723329032770,-100000.0,0.0001243,2]
[334606385,1723329032779,-1000.0,0.0001243,2]
[334606386,1723329032788,-80790.07890256,0.0001243,2]
[334606429,1723329040556,-265.58,0.00011497,2]
[334606430,1723329040566,-298.60903379,0.0001185,2]
[334606431,1723329040576,-194.89025816,0.0001242,2]
[334606439,1723329043069,-19.46974184,0.0001242,2]
[334606440,1723329043079,-214.36,0.0001242,2]
[334606441,1723329043090,-214.36,0.0001242,2]
[334606442,1723329043101,-214.36,0.0001242,2]
[334606443,1723329043112,-214.36,0.0001242,2]
[334606444,1723329043121,-214.36,0.0001242,2]
[334606445,1723329043131,-214.36,0.0001242,2]
[334606446,1723329043140,-31.29421081,0.00012429,2]
[334606447,1723329043152,-183.06578919,0.00012429,2]
[334606448,1723329043162,-214.36,0.00012429,2]
[334606449,1723329043172,-206.75655617,0.0001243,2]
[334606460,1723329044046,-214.36,0.00012429,2]
[334606461,1723329044056,-57851.88484127,0.0001243,2]
[334606462,1723329044065,-151.0,0.0001243,2]
[334606463,1723329044075,-151.0,0.0001243,2]
[334606464,1723329044084,-208.040084,0.0001243,2]
[334606465,1723329044094,-17800.0634,0.00012439,2]
[334606466,1723329044103,-151.0,0.00012539,2]
[334606467,1723329044112,-224.189548,0.00012539,2]
[334606468,1723329044122,-224.189548,0.00012539,2]
[334606469,1723329044131,-154616.63565485,0.0001254,2]
[334606555,1723329176916,150.0,0.00011,2]
[334606559,1723329442144,6862.54864764,0.00010983,2]
[334606560,1723329507607,263.57,9.448e-05,2]
[334606561,1723329553557,150.5,0.0001789,120]
[334606562,1723329553989,1102.0,0.0001789,120]
[334606563,1723329554031,150.5,0.0001788,120]
[334606564,1723329554437,1102.0,0.0001788,120]
[334606565,1723329554523,150.5,0.0001787,120]
[334606566,1723329554948,1102.0,0.0001787,120]
[334606567,1723329554976,150.5,0.0002399,120]
[334606568,1723329555400,1102.0,0.0002399,120]
[334606569,1723329555631,186.91,0.0002398,120]
[334606570,1723329555867,1102.0,0.0002398,120]
[334606571,1723329556506,1102.0,0.0002397,120]
[334606572,1723329556895,1102.0,0.0002399,120]
[334606573,1723329557347,1102.0,0.0002398,120]
[334606574,1723329558233,1102.0,0.0002489,120]
[334606575,1723329558697,1103.14,0.0002488,120]
[334606576,1723329570742,150.0,0.00026044,120]
[334606578,1723329624771,2005.0,0.00027,120]
[334606589,1723329690725,150.0,0.00026363,120]
[334606590,1723329730594,1000.0,0.00025,60]
[334606591,1723329733474,1000.0,0.00025,61]
[334606592,1723329791418,1000.0,0.00026849,120]
[334606604,1723329798359,500.0,0.00024932,120]
[334606605,1723329807170,250.0,0.00011,2]
[334606606,1723329811273,150.0,0.00026012,120]
[334606609,1723329870741,150.0,0.00025368,120]
[334606610,1723329892235,451.372324,0.00010985,2]
[334606621,1723329926428,14419.4027,0.00010983,2]
[334606622,1723329935936,174.36,0.00010993,2]
[334606628,1723330056171,250.39,9.121e-05,2]
[334606633,1723330132410,8106.8312,0.0001094,2]
[334606717,1723330226082,550.0,0.0001,2]
[334606734,1723330232240,-200.0,0.00011017,2]
[334606736,1723330232250,-168.08,0.00011021,2]
[334606738,1723330232260,-476.55596783,0.00011038,2]
[334606743,1723330232317,-624.44403217,0.00011038,2]
[334606744,1723330232326,-231.81763566,0.00011039,2]
[334606745,1723330232338,-51.18236434,0.00011039,2]
[334606746,1723330232347,-180.0,0.0001104,2]
[334606747,1723330232356,-52.62763576,0.00011056,2]
[334606748,1723330233260,-296.32510531,0.00011056,2]
[334606749,1723330233270,-546.58278282,0.00011056,2]
[334606750,1723330233280,-259.12,0.0001106,2]
[334606751,1723330233290,-150.0,0.00011104,2]
[334606752,1723330233299,-1298.06114648,0.00011105,2]
[334606753,1723330233309,-1138.96848202,0.00011105,2]
[334606754,1723330233319,-532.21011992,0.00011105,2]
[334606755,1723330233329,-155.0,0.00011105,2]
[334606756,1723330233339,-520.06308044,0.00011105,2]
[334606757,1723330233349,-1002.98363349,0.00011105,2]
[334606758,1723330233359,-243.21975921,0.00011105,2]
[334606759,1723330233368,-226.09034899,0.00011105,2]
[334606760,1723330233378,-686.91534467,0.00011105,2]
[334606761,1723330233387,-485.12336196,0.00011105,2]
[334606762,1723330233396,-206.97028487,0.00011105,2]
[334606763,1723330233406,-526.58806396,0.00011105,2]
[334606764,1723330233415,-165.48748024,0.00011105,2]
[334606765,1723330233425,-522.18791968,0.00011105,2]
[334606766,1723330233435,-157.70095368,0.00011105,2]
[334606767,1723330233445,-265.3989425,0.00011105,2]
[334606768,1723330233455,-15480.914227,0.00011105,2]
[334606769,1723330233465,-476.87846375,0.00011105,2]
[334606770,1723330233475,-164.35838013,0.00011105,2]
[334606771,1723330233484,-256.08690621,0.00011105,2]
[334606772,1723330233495,-432.42717978,0.00011105,2]
[334606773,1723330233505,-723.30312401,0.00011105,2]
[334606774,1723330233515,-270.54243034,0.00011105,2]
[334606775,1723330233525,-347.64612934,0.00011105,2]
[334606776,1723330233534,-3081.78080517,0.00011105,2]
[334606777,1723330233544,-380.27799084,0.00011105,2]
[334606778,1723330233554,-321.56091267,0.00011105,2]
[334606779,1723330233563,-357.40219692,0.00011105,2]
[334606780,1723330233573,-255.15982534,0.00011105,2]
[334606781,1723330233583,-155.0,0.00011105,2]
[334606782,1723330233593,-155.42139405,0.00011105,2]
[334606783,1723330233602,-313.68115763,0.00011105,2]
[334606784,1723330233612,-493.5352918,0.00011105,2]
[334606785,1723330233621,-164.3805057,0.00011105,2]
[334606786,1723330233630,-155.0,0.00011105,2]
[334606787,1723330233640,-155.0,0.00011105,2]
[334606788,1723330233649,-653.5618012,0.00011105,2]
[334606789,1723330233659,-159.58732349,0.00011105,2]
[334606790,1723330233668,-359.36487156,0.00011105,2]
[334606791,1723330233684,-155.0,0.00011105,2]
[334606792,1723330233693,-155.0,0.00011105,2]
[334606793,1723330233702,-205.91135105,0.00011105,2]
[334606794,1723330233713,-155.0,0.00011105,2]
[334606795,1723330233723,-155.0,0.00011105,2]
[334606796,1723330233733,-9902.3107994,0.00011105,2]
[334606797,1723330233744,-365.72794415,0.00011105,2]
[334606798,1723330233753,-155.0,0.00011105,2]
[334606799,1723330233763,-155.0,0.00011105,2]
[334606800,1723330233773,-187.43686088,0.00011105,2]
[334606801,1723330233782,-330.1548184,0.00011105,2]
[334606802,1723330233793,-203.38597278,0.00011105,2]
[334606803,1723330233803,-367.82402907,0.00011105,2]
[334606804,1723330233813,-17751.69,0.00011109,2]
[334606805,1723330233824,-155.0,0.00011161,2]
[334606806,1723330233834,-155.0,0.00011161,2]
[334606807,1723330233843,-155.0,0.00011161,2]
[334606808,1723330233853,-155.0,0.00011161,2]
[334606809,1723330233862,-155.0,0.00011161,2]
[334606810,1723330233872,-155.0,0.00011161,2]
[334606811,1723330233881,-200.0,0.00011173,2]
[334606812,1723330233891,-185.6,0.00011185,2]
[334606813,1723330233900,-25318.57627977,0.00011186,2]
[334606814,1723330234091,-35722.43931546,0.00011186,2]
[334606815,1723330234108,-155.0,0.00011186,2]
[334606816,1723330234118,-297.44821405,0.00011186,2]
[334606817,1723330234128,-236.3130847,0.00011186,2]
[334606818,1723330234138,-155.0,0.00011186,2]
[334606819,1723330234148,-440.02330588,0.00011186,2]
[334606820,1723330234158,-155.0,0.00011186,2]
[334606821,1723330234171,-155.0,0.00011186,2]
[334606822,1723330234181,-197.1107246,0.00011186,2]
[334606823,1723330234190,-155.0,0.00011186,2]
[334606824,1723330234199,-155.0,0.00011186,2]
[334606825,1723330234209,-155.0,0.00011186,2]
[334606826,1723330234219,-155.0,0.00011206,2]
[334606827,1723330234229,-10532.64512729,0.00011206,2]
[334606828,1723330234239,-158.98147492,0.00011206,2]
[334606829,1723330234250,-202.87709383,0.00011206,2]
[334606830,1723330234260,-10532.64512729,0.00011206,2]
[334606831,1723330234270,-202.87709383,0.00011206,2]
[334606832,1723330234279,-32691.90338807,0.00011222,2]
[334606833,1723330234290,-3120.60802206,0.00011321,2]
[334606834,1723330234300,-3403.93215577,0.00011321,2]
[334606835,1723330234309,-309.25319094,0.00011322,2]
[334606836,1723330234319,-155.0,0.00011322,2]
[334606837,1723330234328,-155.0,0.00011322,2]
[334606838,1723330234338,-155.0,0.00011322,2]
[334606839,1723330234348,-454.51441887,0.00011322,2]
[334606840,1723330234358,-179.41438215,0.00011322,2]
[334606841,1723330234367,-328.20287838,0.00011324,2]
[334606842,1723330234376,-155.0,0.00011324,2]
[334606843,1723330234386,-155.0,0.00011384,2]
[334606844,1723330234395,-250.39,0.00011385,2]
[334606845,1723330234405,-1405.92101915,0.00011525,2]
[334606846,1723330234414,-856.0,0.0001174,2]
[334606847,1723330234424,-364.13857336,0.0001185,2]
[334606848,1723330234433,-3031.93569449,0.00011896,2]
[334606849,1723330234443,-2502.21177786,0.00011896,2]
[334606850,1723330234452,-1000.0,0.000119,4]
[334606851,1723330234462,-719.8919336,0.00011959,2]
[334606852,1723330234471,-600.0,0.00012,2]
[334606853,1723330234481,-211.52,0.00012069,2]
[334606854,1723330234491,-420.2791488,0.000121,2]
[334606855,1723330234500,-1014.8854,0.0001233,2]
[334606856,1723330234510,-5000.0,0.0001236,2]
[334606857,1723330234520,-216.31395803,0.0001236,2]
[334606858,1723330234529,-1763.77728976,0.0001236,2]
[334606859,1723330234728,-577.71422491,0.0001236,2]
[334606860,1723330234738,-98.57828005,0.0001236,2]
[334606861,1723330234750,-1176.87862473,0.0001236,2]
[334606862,1723330234760,-313.00290666,0.0001236,2]
[334606863,1723330234770,-1500.0,0.0001236,2]
[334606864,1723330234780,-1634.13334679,0.0001236,2]
[334606865,1723330234790,-552.57966784,0.0001236,2]
[334606866,1723330234802,-790.15908962,0.0001236,2]
[334606867,1723330234827,-802.89019395,0.0001236,2]
[334606868,1723330234837,-230.20105966,0.00012397,2]
[334606869,1723330234853,-307.36198922,0.00012397,2]
[334607061,1723330240820,-155.0,0.00011105,2]
[334607062,1723330240830,-155.0,0.00011206,2]
[334607064,1723330240839,-206.74216899,0.00011384,2]
[334607066,1723330240848,-719.8919336,0.00011896,2]
[334607068,1723330240857,-1739.33546408,0.00012391,2]
[334607070,1723330240866,-921.42075982,0.00012397,2]
[334607072,1723330240875,-951.84403357,0.00012397,2]
[334607074,1723330240885,-594.98831399,0.00012397,2]
[334607075,1723330240894,-500.0,0.0001244,2]
[334607077,1723330240903,-449.27286,0.0001245,2]
[334607079,1723330240913,-195.07,0.0001245,2]
[334607080,1723330240922,-433.42129888,0.00012457,2]
[334607081,1723330240931,-11079.65200527,0.0001246,2]
[334607252,1723330244342,-1405.92101915,0.00011324,2]
[334607253,1723330244352,-921.42075982,0.00012391,2]
[334607254,1723330244361,-195.07,0.0001245,2]
[334607255,1723330244371,-195.07,0.0001245,2]
[334607256,1723330244380,-195.07,0.0001245,2]
[334607257,1723330244390,-195.07,0.0001245,2]
[334607258,1723330244399,-195.07,0.0001245,2]
[334607259,1723330244408,-686444.77719539,0.0001246,2]
[334607260,1723330244417,-151.0,0.0001246,2]
[334607261,1723330244427,-298.60903379,0.0001246,2]
[334607262,1723330244436,-25000.0,0.000125,2]
[334607263,1723330244446,-449.27286,0.0001252,2]
[334607264,1723330244455,-2953.55232105,0.00012539,2]
[334607265,1723330244464,-628.55580366,0.0001254,2]
[334607266,1723330244474,-5403.00141948,0.0001254,2]
[334607267,1723330244484,-449.27286,0.0001254,2]
[334607268,1723330244493,-449.27286,0.0001254,2]
[334607269,1723330244503,-600.66070461,0.00012581,2]
[334607270,1723330244513,-4794.79259411,0.00012581,2]
[334607271,1723330244522,-218.88046172,0.00012581,2]
[334607272,1723330244532,-449.27286,0.000126,2]
[334607273,1723330244542,-449.27286,0.0001268,2]
[334607274,1723330244552,-419.05748026,0.00012681,2]
[334607275,1723330244563,-649.76947784,0.00012681,2]
[334607276,1723330244572,-649.76947784,0.0001269,2]
[334607277,1723330244582,-211.03121184,0.00012696,2]
[334607278,1723330244592,-401.30737801,0.00012696,2]
[334607279,1723330244603,-32691.90338798,0.00012742,2]
[334607280,1723330244613,-500.0,0.00012745,2]
[334607281,1723330244622,-500.0,0.00012754,2]
[334607282,1723330244632,-500.0,0.00012763,2]
[334607283,1723330244643,-500.0,0.00012772,2]
[334607284,1723330244652,-500.0,0.00012781,2]
[334607285,1723330244661,-500.0,0.00012789,2]
[334607286,1723330244671,-500.0,0.00012798,2]
[334607287,1723330244680,-500.0,0.00012807,2]
[334607288,1723330244691,-500.0,0.00012816,2]
[334607289,1723330244700,-500.0,0.00012825,2]
[334607290,1723330244710,-528.84642051,0.00012826,2]
[334607291,1723330244719,-500.0,0.00012833,2]
[334607292,1723330244729,-500.0,0.00012842,2]
[334607293,1723330244739,-500.0,0.00012851,2]
[334607294,1723330244749,-500.0,0.0001286,2]
[334607295,1723330244758,-500.0,0.00012869,2]
[334607296,1723330244768,-500.0,0.00012877,2]
[334607297,1723330244777,-180.0,0.0001288,2]
[334607298,1723330244787,-400.0,0.00012883,2]
[334607299,1723330244797,-157.72,0.00012893,2]
[334607300,1723330244807,-208.040084,0.000129,2]
[334607301,1723330244817,-2100.0,0.000129,4]
[334607302,1723330244827,-17800.0634,0.000129,2]
[334607303,1723330244839,-406.30521841,0.00012995,2]
[334607304,1723330244849,-151.0,0.00012995,2]
[334607305,1723330244858,-300.0,0.00013,2]
[334607306,1723330244868,-155.2714471,0.00013,2]
[334607307,1723330244877,-155.32262926,0.00013043,2]
[334607308,1723330244886,-185.6,0.00013049,2]
[334607309,1723330244896,-500.0,0.00013069,2]
[334607310,1723330244907,-224.189548,0.00013098,2]
[334607311,1723330244918,-224.189548,0.00013098,2]
[334607312,1723330244928,-57851.8849,0.00013098,2]
[334607313,1723330244938,-155.0,0.00013133,2]
[334607314,1723330244949,-1583.0,0.00013143,2]
[334607315,1723330244959,-556.0,0.00013143,2]
[334607316,1723330244968,-550.0,0.00013143,2]
[334607317,1723330244978,-355.881,0.00013143,2]
[334607318,1723330244987,-150.0,0.00013143,2]
[334607319,1723330244998,-1076.0,0.00013143,2]
[334607320,1723330245008,-150.0,0.00013143,2]
[334607321,1723330245018,-162.869,0.00013143,2]
[334607322,1723330245028,-150.327,0.00013143,2]
[334607323,1723330245037,-150.263,0.00013143,2]
[334607324,1723330245048,-151.373,0.00013143,2]
[334607325,1723330245059,-151.0,0.00013198,2]
[334607326,1723330245068,-7500.0,0.00013198,2]
[334607327,1723330245078,-856.0,0.00013208,2]
[334607328,1723330245087,-200.0,0.00013273,2]
[334607329,1723330245097,-183647.80506836,0.00013298,2]
[334607330,1723330245106,-151.0,0.00013298,2]
[334607331,1723330245116,-224.189548,0.00013298,2]
[334607332,1723330245125,-224.189548,0.00013298,2]
[334607333,1723330245135,-9269.56154788,0.00013483,2]
[334607334,1723330245144,-9269.56154788,0.00013483,2]
[334607335,1723330245154,-211.52,0.00013577,2]
[334607336,1723330245163,-313.00290666,0.00013614,2]
[334607337,1723330245177,-250.39,0.00013648,2]
[334607338,1723330245186,-1648.57824608,0.0001367,2]
[334607339,1723330245196,-2840.69197074,0.0001367,2]
[334607340,1723330245206,-500.0,0.00013697,2]
[334607341,1723330245217,-151.0,0.00013699,2]
[334607342,1723330245227,-151.0,0.00013699,2]
[334607343,1723330245237,-151.0,0.00013699,2]
[334607344,1723330245249,-151.0,0.00013699,2]
[334607345,1723330245259,-151.0,0.00013699,2]
[334607346,1723330245268,-151.0,0.00013699,2]
[334607347,1723330245278,-500.0,0.00013699,2]
[334607348,1723330245287,-170.46,0.00013699,2]
[334607349,1723330245297,-2751.0,0.00013699,2]
[334607350,1723330245307,-200.0,0.00013699,2]
[334607351,1723330245316,-3979.10104429,0.00013699,2]
[334607352,1723330245326,-2835.67566949,0.0001372,2]
[334607353,1723330245335,-962.32288894,0.0001372,2]
[334607354,1723330245345,-11730.3813962,0.0001372,2]
[334607355,1723330245355,-433.42129888,0.00013797,2]
[334607356,1723330245364,-151.0,0.000138,2]
[334607358,1723330245374,-151.0,0.000138,2]
[334607359,1723330245384,-151.0,0.000138,2]
[334607360,1723330245394,-146630.204595,0.000138,3]
[334607361,1723330245404,-224.189548,0.000138,2]
[334607362,1723330245415,-224.189548,0.000138,2]
[334607363,1723330245426,-1074.54001248,0.00013889,2]
[334607364,1723330245437,-1074.54001248,0.00013889,2]
[334607365,1723330245447,-264.45526709,0.00013896,2]
[334607366,1723330245458,-2000.0,0.000139,2]
[334607367,1723330245467,-2000.0,0.000139,2]
[334607368,1723330245478,-151.0,0.000139,2]
[334607369,1723330245487,-3200.0,0.000139,5]
[334607370,1723330245498,-478538.316756,0.000139,3]
[334607371,1723330245507,-224.189548,0.000139,2]
[334607372,1723330245517,-224.189548,0.000139,2]
[334607373,1723330245527,-499.650227,0.00013973,2]
[334607374,1723330245536,-164.11,0.00013973,2]
[334607375,1723330245545,-171.63,0.00013973,2]
[334607376,1723330245555,-150.81,0.00013973,2]
[334607377,1723330245565,-829.65,0.00013973,2]
[334607378,1723330245575,-304.96,0.00013973,2]
[334607379,1723330245585,-650.0,0.00014,2]
[334607380,1723330245595,-834.37,0.00014192,2]